[Event "AUT-ch U18 Boys 2022"]
[Site "Sankt Veit an der Glan"]
[Date "2022.04.13"]
[Round "6.5"]
[White "Hechl, Fabian"]
[Black "Pribozic, Manuel"]
[Result "0-1"]
[ECO "D00"]
[WhiteElo "2023"]
[BlackElo "1543"]
[Annotator "TA"]
[PlyCount "84"]
[EventDate "2022.04.11"]
[EventType "swiss"]
[EventCountry "AUT"]
[SourceTitle "playchess.com"]
[Source "ChessBase"]
[SourceQuality "1"]
[TimeControl "5400+30"]

{[%evp 9,84,14,14,10,16,-83,-52,-112,-111,-114,-68,-142,-139,-177,-172,-190,-210,-248,-251,-242,-158,-145,-143,-186,-123,-122,-117,-112,-101,-116,-119,-114,-112,-161,-160,-363,-383,-377,-371,-356,-372,-360,-172,-177,-180,-187,-180,-247,-251,-315,-310,-394,-418,-415,-411,-420,-419,-656,-658,-585,-403,-486,-462,-1552,-1505,-1960,-1892,-2091,-1950,-29981,-29982,-29982,-29983,-29982,-29983,-29979,-2948]} 1. d4 {[%emt 0:00:05]} d5 {[%emt 0:00:55]} 2. Nc3 {[%emt 0:00:10]} Nf6 {[%emt 0:01:36]} 3. Bf4 {[%emt 0:00:10]} e6 {[%emt 0:01:21]} 4. Nb5 {[%emt 0:00:46]} Bd6 {[%emt 0:01:25]} 5. Nxd6+ {[%emt 0:01:10]} cxd6 {[%emt 0:00:02]} 6. e3 {[%emt 0:14:52] D00: 1 d4 d5: Unusual lines.} O-O {[%emt 0:09:32] [#]} 7. g4 $146 {[%emt 0:14:45]} (7. c3 $11 {keeps the balance.}) ({Predecessor:} 7. Nf3 Nc6 8. Be2 Ne4 9. h3 f6 10. O-O e5 11. Bh2 Be6 12. c4 Rc8 13. Rc1 {0-1 (58) Alekseenko,K (2696)-Anisimov,P (2527) Chess.com INT 2021}) 7... Re8 {[%emt 0:21:11]} 8. Nf3 {[%emt 0:20:51] Prevents e5.} (8. Bg5 $15) 8... Nxg4 $17 {[%emt 0:13:30]} 9. h3 {[%emt 0:02:19] [#]} e5 $1 {[%emt 0:04:36]} 10. Bg5 {[%emt 0:11:31] [#]} (10. dxe5 $15 Nxe5 11. Bg2) (10. Bg3 Nf6) 10... f6 $1 {[%emt 0:00:33][%cal Og4f2] And now ...Nxf2! would win.} 11. Bh4 {[%emt 0:01:00]} (11. hxg4 fxg5) 11... Nh6 {[%emt 0:00:15]} 12. dxe5 {[%emt 0:08:16]} dxe5 {[%emt 0:01:22]} 13. Qd2 {[%emt 0:01:11]} Nc6 {[%emt 0:04:21]} 14. O-O-O {[%emt 0:02:48]} e4 {[%emt 0:03:55]} 15. Ng1 {[%emt 0:01:48]} Nf5 {[%emt 0:02:30]} 16. Bg3 {[%emt 0:00:14]} Nxg3 {[%emt 0:00:01]} ({Black should try} 16... Be6 $19 {aiming for ...d4.} 17. Ne2 Qb6) 17. fxg3 {[%emt 0:00:07]} Be6 {[%emt 0:00:50][%cal Od5d4]} 18. Ne2 {[%emt 0:00:53] Inhibits d4.} Qb6 {[%emt 0:09:39] &Nero is more active.} 19. Nf4 {[%emt 0:03:05]} Rad8 $36 {[%emt 0:01:25][%mdl 2048] Black is really pushing.} 20. Nxe6 {[%emt 0:01:40]} Rxe6 {[%emt 0:00:02]} 21. Rh2 {[%emt 0:03:06]} (21. c3 $17) 21... Red6 {[%emt 0:02:41]} 22. c3 {[%emt 0:02:17] Inhibits d4.} (22. Qc3 $17) 22... d4 $19 {[%emt 0:03:46] Strongly threatening ...dxc3.} ({Don't go for} 22... Ne5 $2 23. Re2 $19) 23. Bc4+ {[%emt 0:03:55]} Kh8 {[%emt 0:00:05] White must now prevent ...dxc3.} 24. exd4 {[%emt 0:04:12] [#]} Nxd4 $1 {[%emt 0:05:06][%mdl 512]} 25. Qf4 {[%emt 0:01:02] [#]} ({Don't play} 25. cxd4 Rxd4 26. b3 e3 27. Qxd4 Rxd4 $19) 25... Nf3 {[%emt 0:04:43] Against Rhd2} (25... Qc6 $142 $1 26. Rhd2 (26. cxd4 Qxc4+) 26... Qxc4 27. Rxd4 Rxd4 28. Rxd4 Rxd4 29. Qb8+ Qg8 30. Qxg8+ Kxg8 31. cxd4 Kf7) 26. Rxd6 {[%emt 0:00:36]} Qxd6 {[%emt 0:00:01]} ({Inferior is} 26... Rxd6 27. Rg2 $17) 27. Qxd6 {[%emt 0:00:30]} Rxd6 {[%emt 0:00:05][%mdl 4096] Endgame KRB-KRN} 28. Re2 {[%emt 0:00:26]} (28. Rf2 {might work better.}) 28... f5 {[%emt 0:00:35]} 29. g4 {[%emt 0:00:32]} g6 {[%emt 0:00:20][%cal Bg7g6,Bg6f5,Bf5f4,Bf4f3][%mdl 32]} 30. Re3 {[%emt 0:00:23]} Kg7 {[%emt 0:01:35]} 31. Be2 {[%emt 0:00:34]} Ne5 {[%emt 0:03:11]} 32. gxf5 {[%emt 0:00:22]} gxf5 {[%emt 0:00:01]} 33. Rg3+ {[%emt 0:00:06]} (33. a3 $142) 33... Kf6 {[%emt 0:01:17]} 34. Rg8 {[%emt 0:00:25]} Ng6 {[%emt 0:00:13] Hoping for ...e3.} 35. Ra8 {[%emt 0:00:46]} a6 {[%emt 0:02:37]} 36. Ra7 {[%emt 0:00:27]} (36. Re8 $142 Ne5 37. h4) 36... f4 {[%emt 0:00:42] ...f3 is the strong threat.} 37. Rxb7 {[%emt 0:00:34]} f3 {[%emt 0:00:09]} 38. Bc4 {[%emt 0:00:58]} Ne5 {[%emt 0:00:50] ( -> ...e3)} 39. Rxh7 {[%emt 0:00:33]} e3 {[%emt 0:00:54][%cal Be4e3,Be3e2][%mdl 32] Black mates.} 40. Rh6+ {[%emt 0:00:29]} Ng6 {[%emt 0:01:26]} 41. Rh7 {[%emt 0:00:31]} e2 {[%emt 0:00:24]} 42. Rf7+ {[%emt 0:00:25]} Ke5 {[%emt 0:00:01] Weighted Error Value: White=0.82/Black=0.20 (precise)} (42... Kg5 $142 43. Kc2 e1=Q 44. Kb3 Ne5 45. h4+ Qxh4 46. Rg7+ Kf6 47. Rc7 Nxc4 48. Rxc4 Rb6+ 49. Rb4 Rxb4+ 50. Ka3 {[#]} f2 $1 {[%mdl 512]} 51. cxb4 f1=Q 52. Ka4 Qb5+ 53. Kb3 Qhc4+ 54. Ka3 Qcxb4#) 0-1

[Event "AUT-ch U18 Boys 2022"]
[Site "Sankt Veit an der Glan"]
[Date "2022.04.13"]
[Round "6.6"]
[White "Buchegger, Fridolin"]
[Black "Weichhart, Daniel"]
[Result "0-1"]
[ECO "D04"]
[WhiteElo "2010"]
[BlackElo "2032"]
[Annotator "TA"]
[PlyCount "86"]
[EventDate "2022.04.11"]
[EventType "swiss"]
[EventCountry "AUT"]
[SourceTitle "playchess.com"]
[Source "ChessBase"]
[SourceQuality "1"]
[TimeControl "5400+30"]

{[%evp 9,86,10,38,-9,13,8,14,10,9,7,20,-30,-12,-10,-10,-15,6,-24,0,-27,-12,-43,-38,-39,-30,-20,-15,-34,-26,-36,-27,-69,-71,-64,-66,-112,-81,-97,-41,-144,-116,-131,-78,-89,-74,-100,-105,-172,-162,-153,-158,-176,-164,-195,-194,-606,-550,-549,-535,-516,-502,-511,-483,-545,-393,-740,-496,-732,-711,-1390,-940,-755,0,-1459,-1456,-1574,-595,-29992,-29989]} 1. d4 {[%emt 0:00:04]} d5 {[%emt 0:00:06]} 2. Nf3 {[%emt 0:00:12]} Nf6 {[%emt 0:00:08]} 3. e3 {[%emt 0:02:11]} Bg4 {[%emt 0:02:10]} 4. Nbd2 {[%emt 0:01:02]} e6 {[%emt 0:00:15]} 5. h3 {[%emt 0:02:43]} Bh5 {[%emt 0:00:25]} (5... Bxf3 $5 6. Nxf3 c5 $11) 6. Be2 {[%emt 0:02:58] D04: Colle System.} (6. g4 $14 Bg6 7. Ne5) 6... Bd6 {[%emt 0:00:31]} 7. b3 {[%emt 0:00:23]} O-O {[%emt 0:00:28]} 8. Bb2 {[%emt 0:00:16] The position is equal.} c5 {[%emt 0:00:40]} 9. O-O {[%emt 0:01:02]} cxd4 {[%emt 0:01:58]} 10. exd4 {[%emt 0:00:26]} (10. Nxd4 $142 Bg6 11. c4) 10... Nc6 {[%emt 0:01:38]} 11. Ne5 {[%emt 0:01:10]} Bxe2 {[%emt 0:02:00]} 12. Qxe2 {[%emt 0:00:15]} Rc8 {[%emt 0:00:49][%cal Ob7b5]} 13. a3 {[%emt 0:01:23]} a6 {[%emt 0:01:22]} 14. Rac1 {[%emt 0:05:31]} Qe7 {[%emt 0:02:18]} 15. b4 {[%emt 0:00:35] [#]} b5 $146 {[%emt 0:02:29]} ({Predecessor:} 15... Na7 16. c4 dxc4 17. Rxc4 Nd5 18. Rfc1 Rxc4 19. Rxc4 Nb6 20. Rc2 h6 21. Ne4 Bxe5 22. dxe5 {1-0 (72) Cortes Sobrevilla,C (1678)-Latorre Bueno,F (1548) Zaragoza 2015}) 16. Nb3 {[%emt 0:02:47]} Bxe5 {[%emt 0:02:35]} 17. dxe5 {[%emt 0:01:25]} Nd7 {[%emt 0:00:14][%cal Bf6d7,Bd7b6,Bb6c4][%mdl 32]} 18. Qe3 {[%emt 0:05:56]} Qd8 {[%emt 0:07:53]} 19. f4 {[%emt 0:04:52]} Nb6 {[%emt 0:11:14]} 20. f5 {[%emt 0:09:40]} Nc4 {[%emt 0:02:35]} 21. Qg3 {[%emt 0:00:51][%cal Of5f6] [#] Hoping for f6!} exf5 {[%emt 0:03:05]} 22. Bd4 {[%emt 0:02:54]} (22. Bc3 $15 {should be considered.}) 22... Nxd4 {[%emt 0:04:05]} ({Much weaker is} 22... Nxa3 $6 23. Rxf5 (23. Bc5 Re8 $15) 23... Nc4 24. c3 $11 (24. e6 Nxd4 25. exf7+ Rxf7 $15)) 23. Nxd4 {[%emt 0:00:09]} Qb6 {[%emt 0:00:05]} ({Black should play} 23... Nd2 $17 {Threatens to win with ...Qb6.} 24. Nxf5 g6 25. Nh6+ Kg7 26. Nf5+ Kh8) 24. Rf4 {[%emt 0:01:12]} (24. Rcd1 $15) 24... Nxe5 {[%emt 0:02:47]} 25. Kh1 {[%emt 0:00:50]} Rc4 {[%emt 0:11:20]} (25... Qg6 $142 26. Qe3 Rfe8 27. Nxf5 Qg5) 26. Nxf5 $17 {[%emt 0:00:50][%csl Gf5][%cal Rg3g7] [#]} Ng6 $36 {[%emt 0:00:30][%mdl 2048] Black has strong initiative.} 27. Rxc4 {[%emt 0:01:41]} dxc4 {[%emt 0:01:02]} 28. h4 {[%emt 0:02:00]} (28. Rf1 $17) 28... Qf6 $19 {[%emt 0:00:50]} 29. Rf1 {[%emt 0:00:28][%cal Of5h6] Strongly threatening Nh6+!} Ne7 {[%emt 0:00:11]} 30. Ne3 {[%emt 0:08:02]} Qe6 {[%emt 0:11:11]} 31. Ng4 {[%emt 0:01:15]} Qg6 {[%emt 0:02:55]} 32. Kg1 $2 {[%emt 0:02:29]} (32. Kh2) 32... h5 {[%emt 0:02:22]} 33. Qc7 {[%emt 0:01:00][%cal Og4f6]} Nd5 {[%emt 0:03:38] Prevents Nf6+.} ({Don't blunder} 33... Qxg4 $2 34. Qxe7 f6 35. Qe1 $17) 34. Qe5 {[%emt 0:03:06]} hxg4 {[%emt 0:03:40]} 35. Qxd5 {[%emt 0:00:43]} Qxc2 {[%emt 0:00:13][%mdl 4096] Endgame KQR-KQR} 36. Qd6 {[%emt 0:01:56]} Qg6 {[%emt 0:00:18]} 37. Qd5 {[%emt 0:01:44]} (37. Qxg6 fxg6 38. Re1) 37... Qe6 {[%emt 0:00:55]} 38. Qg5 {[%emt 0:01:47]} (38. Qxe6 $142 fxe6 39. Rd1) 38... Re8 {[%emt 0:00:13] aiming for ...c3.} 39. Kh1 {[%emt 0:00:13]} Qe2 {[%emt 0:01:48]} 40. Qf5 {[%emt 0:00:34]} Qe6 {[%emt 0:01:27]} (40... Re7 $142 41. Qc8+ Kh7) 41. Qg5 $1 {[%emt 0:00:37]} f6 {[%emt 0:03:30]} 42. Qg6 {[%emt 0:01:29]} Qe4 {[%emt 0:00:24]} (42... Qe2 $142 43. Kh2 Qe5+ 44. Kh1 g3) 43. Qh5 {[%emt 0:00:28]} Re5 {[%emt 0:00:29] Weighted Error Value: White=0.54/Black=0.41} 0-1

[Event "AUT-ch U18 Boys 2022"]
[Site "Sankt Veit an der Glan"]
[Date "2022.04.13"]
[Round "6.7"]
[White "Cafasso, Elia"]
[Black "Marte, Lukas"]
[Result "1/2-1/2"]
[ECO "C70"]
[WhiteElo "2061"]
[BlackElo "1614"]
[Annotator "TA"]
[PlyCount "73"]
[EventDate "2022.04.11"]
[EventType "swiss"]
[EventCountry "AUT"]
[SourceTitle "playchess.com"]
[Source "ChessBase"]
[SourceQuality "1"]
[TimeControl "5400+30"]

{[%evp 11,73,39,31,14,14,7,12,13,20,-9,-6,-9,-9,0,0,-22,-10,-13,0,0,0,-16,-16,-20,-8,-10,-10,-38,-8,-26,-6,-15,-15,-12,0,0,0,0,0,0,3,0,0,0,11,0,0,0,0,0,0,0,0,0,43,44,39,31,20,22,33,0,0,0]} 1. e4 {[%emt 0:00:06]} e5 {[%emt 0:00:04]} 2. Nf3 {[%emt 0:00:02]} Nc6 {[%emt 0:00:04]} 3. Bb5 {[%emt 0:00:03]} a6 {[%emt 0:00:04]} 4. Ba4 {[%emt 0:00:02]} b5 {[%emt 0:00:04]} 5. Bb3 {[%emt 0:00:02]} Nf6 {[%emt 0:00:18]} 6. d4 {[%emt 0:00:00]} d6 {[%emt 0:01:13]} 7. dxe5 {[%emt 0:00:27] C77: Ruy Lopez: 3...a6 4 Ba4 Nf6, unusual lines.} (7. c3 {looks sharper.} Be7 8. O-O O-O 9. Nbd2) 7... dxe5 {[%emt 0:02:14]} 8. Qxd8+ {[%emt 0:00:17]} Nxd8 {[%emt 0:01:15][%cal Bc6d8,Bd8b7,Bb7c5][%mdl 32]} 9. Nxe5 {[%emt 0:01:49]} Bd6 {[%emt 0:05:49]} 10. Nf3 {[%emt 0:01:44] [#] And now e5 would win.} Nxe4 {[%emt 0:02:06]} 11. Bd5 {[%emt 0:02:06]} Bb7 {[%emt 0:00:06]} 12. Bxb7 {[%emt 0:00:02]} Nxb7 {[%emt 0:00:05] [#]} 13. Nbd2 $146 {[%emt 0:02:05]} ({Predecessor:} 13. Be3 O-O 14. Nbd2 Nxd2 15. Nxd2 Nc5 16. O-O-O a5 17. Bxc5 Bxc5 18. Ne4 Bb6 19. Rd2 {½-½ (36) Kanzow,A (1614)-Triantafillidis,S (1721) Duesseldorf 2016}) 13... Nxd2 {[%emt 0:04:18]} 14. Bxd2 {[%emt 0:00:08][%cal Bc1d2,Bd2c3,Bc3b2][%mdl 32]} O-O {[%emt 0:00:10]} 15. O-O {[%emt 0:00:57]} Rfe8 {[%emt 0:01:48]} 16. Bc3 {[%emt 0:02:45]} Nc5 {[%emt 0:07:01]} 17. b3 {[%emt 0:01:21]} Rad8 {[%emt 0:01:36]} 18. Rad1 {[%emt 0:05:02]} f6 {[%emt 0:03:49]} 19. Bb2 {[%emt 0:03:41]} Kf7 {[%emt 0:01:19]} 20. Nd4 {[%emt 0:01:32]} Bf8 {[%emt 0:03:31]} 21. g3 {[%emt 0:03:51]} g6 {[%emt 0:01:36]} 22. Kg2 {[%emt 0:04:13]} f5 {[%emt 0:02:28]} 23. Nc6 {[%emt 0:00:26]} Rxd1 {[%emt 0:02:00]} 24. Rxd1 {[%emt 0:00:03]} Bd6 {[%emt 0:00:48]} 25. Ba3 {[%emt 0:15:35]} Re2 {[%emt 0:04:11]} 26. Nd4 {[%emt 0:00:09]} Re8 {[%emt 0:00:14]} 27. Nc6 {[%emt 0:00:42]} Re2 {[%emt 0:00:07] Strongly threatening ...Ne4.} 28. Nd4 {[%emt 0:00:03]} Re8 {[%emt 0:00:05]} 29. Kf1 {[%emt 0:00:07]} Ne4 {[%emt 0:09:22]} 30. Bxd6 {[%emt 0:00:11]} Nxd6 $11 {[%emt 0:00:05][%mdl 4096] Endgame KRN-KRN} 31. Nc6 {[%emt 0:02:33]} Ke6 {[%emt 0:00:50]} 32. Re1+ {[%emt 0:01:20]} Kd7 {[%emt 0:00:38]} (32... Ne4 $5 {[%cal Re6d6]} 33. f3 Kd7 $11) 33. Rxe8 {[%emt 0:00:27]} Kxe8 {[%emt 0:00:07]} 34. f3 {[%emt 0:01:49]} Kf7 {[%emt 0:02:52]} 35. Ke2 {[%emt 0:00:43]} Nb7 {[%emt 0:00:24]} 36. Kd3 {[%emt 0:01:18]} (36. Nb8 $5 {[%cal Rb8a6]}) 36... Ke6 $1 {[%emt 0:00:35]} 37. c3 {[%emt 0:10:05] Weighted Error Value: White=0.07 (flawless) /Black=0.06 (flawless)} 1/2-1/2

[Event "AUT-ch U18 Boys 2022"]
[Site "Sankt Veit an der Glan"]
[Date "2022.04.13"]
[Round "6.8"]
[White "Martetschlaeger, Stefan"]
[Black "Schilcher, Marcel"]
[Result "0-1"]
[ECO "B92"]
[WhiteElo "1679"]
[BlackElo "1671"]
[Annotator "NA RC"]
[PlyCount "116"]
[EventDate "2022.04.11"]
[EventType "swiss"]
[EventCountry "AUT"]
[SourceTitle "playchess.com"]
[Source "ChessBase"]
[SourceQuality "1"]
[TimeControl "5400+30"]

1. e4 {[%emt 0:00:04]} c5 {[%emt 0:00:07]} 2. Nf3 {[%emt 0:00:11]} d6 {[%emt 0:00:04]} 3. d4 {[%emt 0:00:10]} cxd4 {[%emt 0:00:06]} 4. Nxd4 {[%emt 0:00:14]} Nf6 {[%emt 0:00:06]} 5. Nc3 {[%emt 0:00:30]} a6 {[%emt 0:00:06]} 6. Be2 {[%emt 0:00:59]} e5 {[%emt 0:00:10]} 7. Nb3 {[%emt 0:00:26]} Be7 {[%emt 0:00:09]} 8. Bg5 {[%emt 0:00:47]} Nbd7 {[%emt 0:05:01]} 9. Qd2 {[%emt 0:03:25]} O-O {[%emt 0:04:01]} 10. h4 {[%emt 0:05:57]} b5 {[%emt 0:22:07]} 11. Nd5 {[%emt 0:10:06]} Nxd5 {[%emt 0:05:11]} 12. Qxd5 {[%emt 0:01:13]} Nb6 {[%emt 0:00:11]} 13. Qd2 {[%emt 0:00:50]} f6 {[%emt 0:06:09]} 14. Be3 {[%emt 0:00:36]} Be6 {[%emt 0:00:17]} 15. g4 {[%emt 0:06:21]} Nc4 {[%emt 0:22:13]} 16. Bxc4 {[%emt 0:10:49]} Bxc4 {[%emt 0:01:49]} 17. Na5 {[%emt 0:07:44]} Qc7 {[%emt 0:08:52]} 18. Nxc4 {[%emt 0:01:54]} Qxc4 {[%emt 0:00:04]} 19. Qd5+ {[%emt 0:06:45]} Qxd5 {[%emt 0:00:03]} 20. exd5 {[%emt 0:00:07]} Rac8 {[%emt 0:02:26]} 21. Kd2 {[%emt 0:05:29]} f5 {[%emt 0:09:00]} 22. a4 {[%emt 0:02:09]} f4 {[%emt 0:04:25]} 23. Bb6 {[%emt 0:00:35]} Rb8 {[%emt 0:00:23]} 24. Ba5 {[%emt 0:00:39]} bxa4 {[%emt 0:01:29]} 25. Bc3 {[%emt 0:03:06]} Rb5 {[%emt 0:00:23]} 26. Rxa4 {[%emt 0:00:37]} Ra8 {[%emt 0:01:07]} 27. h5 {[%emt 0:00:42]} Rxd5+ {[%emt 0:01:44]} 28. Ke2 {[%emt 0:00:11]} Bd8 {[%emt 0:01:57]} 29. Rha1 {[%emt 0:00:45]} a5 {[%emt 0:00:41]} 30. b4 {[%emt 0:00:32]} Rc8 {[%emt 0:00:14]} 31. R1a3 {[%emt 0:01:33]} axb4 {[%emt 0:01:21]} 32. Rxb4 {[%emt 0:01:33]} Rdc5 {[%emt 0:00:44]} 33. Rbb3 {[%emt 0:01:06]} Be7 {[%emt 0:00:32]} 34. Kd2 {[%emt 0:01:03]} Kf7 {[%emt 0:00:06]} 35. Ra7 {[%emt 0:00:33]} R5c7 {[%emt 0:01:15]} 36. Rbb7 {[%emt 0:02:57]} Rxb7 {[%emt 0:00:31]} 37. Rxb7 {[%emt 0:02:16]} Ke6 {[%emt 0:00:08]} 38. f3 {[%emt 0:01:53]} h6 {[%emt 0:00:05]} 39. Kd3 {[%emt 0:01:08]} Ra8 {[%emt 0:00:10]} 40. Bb4 {[%emt 0:01:25]} Ra1 {[%emt 0:00:57]} 41. Rc7 {[%emt 0:01:26]} Rh1 {[%emt 0:01:01]} 42. c4 {[%emt 0:01:14]} Rd1+ {[%emt 0:00:51]} 43. Ke2 {[%emt 0:01:08]} Rb1 {[%emt 0:00:43]} 44. Bc3 {[%emt 0:01:22]} Rb3 {[%emt 0:00:21]} 45. Kd2 {[%emt 0:00:18]} Ra3 {[%emt 0:00:31]} 46. Rb7 {[%emt 0:00:52]} Ra2+ {[%emt 0:00:15]} 47. Bb2 {[%emt 0:00:53]} e4 {[%emt 0:00:59]} 48. Ke1 {[%emt 0:02:54]} Bh4+ {[%emt 0:02:05]} 49. Kf1 {[%emt 0:00:56]} exf3 {[%emt 0:00:15]} 50. Rb8 {[%emt 0:03:17]} f2 {[%emt 0:00:45]} 51. Bxg7 {[%emt 0:00:53]} Rc2 {[%emt 0:00:23]} 52. Rb1 {[%emt 0:00:45]} f3 {[%emt 0:00:18]} 53. Bd4 {[%emt 0:02:35]} Re2 {[%emt 0:00:14]} 54. Bc3 {[%emt 0:00:49]} Kd7 {[%emt 0:00:39]} 55. Ba5 {[%emt 0:01:06]} Ke6 {[%emt 0:00:21]} 56. g5 {[%emt 0:03:42]} Bxg5 {[%emt 0:00:26]} 57. c5 {[%emt 0:00:25]} dxc5 {[%emt 0:01:14]} 58. Bd8 {[%emt 0:01:15]} Re1+ {[%emt 0:00:20]} 0-1